bitfinex/quotes_ETHUSD_20220218
["timestamp","ask_amount","ask_price","bid_price","bid_amount"]
[1645176214574,3.0699,2931.1,2930.1,0.00820104]
[1645176214767,0.79,2931.1,2930.2,1.45489434]
[1645176214964,0.79,2931.1,2930.3,0.00497915]
[1645176215166,0.79,2931.1,2930.3,0.30497915]
[1645176215368,0.79,2931.1,2930.3,0.3]
[1645176215619,0.79,2931.1,2931.0,1.03856883]
[1645176215812,0.49,2931.5,2931.0,1.03856883]
[1645176216114,0.49,2931.5,2931.0,1.83774798]
[1645176216319,0.49,2931.5,2931.1,0.30497915]
[1645176216516,1.70919973,2932.1,2931.1,0.30497915]
[1645176216517,0.49,2931.9,2931.1,0.30497915]
[1645176216915,1.34332,2931.9,2931.1,0.30497915]
[1645176218016,1.33556385,2931.9,2931.1,0.30497915]
[1645176218818,0.48224385,2931.9,2931.1,0.30497915]
[1645176219018,0.48224385,2931.9,2931.1,3.22117232]
[1645176219218,0.48224385,2931.9,2931.1,0.30497915]
[1645176219464,0.00249041,2932.1,2931.2,1.45447412]
[1645176219670,0.00249041,2932.1,2931.3,3.78642086]
[1645176219865,0.00249041,2932.1,2931.4,1.45447412]
[1645176220165,0.00454555,2932.9,2932.0,1.08270159]
[1645176220370,0.00454555,2932.9,2932.1,3.5885]
[1645176222067,0.00454555,2932.9,2932.2,3.5]
[1645176222870,0.00240166,2932.7,2932.2,3.5]
[1645176223914,0.0249249,2932.9,2932.2,3.5]
[1645176224115,0.8779649,2932.9,2932.2,3.5]
[1645176224715,0.3249249,2932.9,2932.2,3.5]
[1645176225216,0.3,2932.8,2932.2,3.5]
[1645176225417,0.00454555,2932.7,2932.2,3.5]
[1645176225616,0.0249249,2932.9,2932.2,3.5]
[1645176226219,0.0249249,2932.9,2932.1,7.0885]
[1645176227674,0.00249083,2932.6,2932.1,7.0885]
[1645176227874,0.00703638,2932.6,2932.1,7.0885]
[1645176228478,0.00703638,2932.6,2932.1,3.5885]
[1645176228675,0.00454555,2932.6,2932.1,3.5885]
[1645176228874,0.00249083,2932.5,2932.1,3.5885]
[1645176229773,0.00454555,2932.6,2932.1,7.0885]
[1645176229974,0.00249083,2932.4,2932.1,7.0885]
[1645176230608,0.00249083,2932.4,2932.1,3.5885]
[1645176230809,0.00249083,2932.4,2932.1,7.0885]
[1645176231112,0.00454555,2932.6,2932.1,7.0885]
[1645176231310,0.00249083,2932.4,2932.1,7.0885]
[1645176232109,0.00454555,2932.6,2932.1,7.0885]
[1645176232510,0.00249083,2932.4,2932.1,7.0885]
[1645176233513,0.32197987,2932.7,2932.1,7.0885]
[1645176233716,0.00249083,2932.4,2932.1,7.0885]
[1645176234560,0.30454555,2932.7,2932.1,7.0885]
[1645176234760,0.30454555,2932.7,2932.1,7.3885]
[1645176234964,0.00249083,2932.4,2932.1,7.3885]
[1645176235762,0.30454555,2932.7,2932.1,7.0885]
[1645176236269,0.00249083,2932.4,2932.1,7.0885]
[1645176237065,0.30454555,2932.7,2932.1,7.0885]
[1645176237267,0.00249083,2932.4,2932.1,7.0885]
[1645176237865,0.00249083,2932.4,2932.1,6.0885]
[1645176238318,0.00454555,2933.1,2932.1,6.3885]
[1645176238518,0.00249083,2932.4,2932.1,6.3885]
[1645176238821,0.00249083,2932.4,2932.1,6.0885]
[1645176239419,0.00454555,2933.2,2932.1,6.0885]
[1645176239619,0.3,2933.3,2932.1,6.0885]
[1645176239820,0.00249083,2932.4,2932.1,6.3885]
[1645176240023,0.00249083,2932.4,2932.1,2.5885]
[1645176240221,0.00249083,2932.4,2932.1,6.0885]
[1645176241020,0.00454555,2933.0,2932.1,6.0885]
[1645176242061,0.00454555,2933.0,2932.1,6.3885]
[1645176242963,0.3,2933.0,2932.1,6.3885]
[1645176243165,0.8529,2933.4,2932.1,6.3885]
[1645176243166,0.00454555,2932.9,2932.1,6.3885]
[1645176243466,0.00454555,2933.3,2932.1,6.3885]
[1645176243663,0.00249083,2932.7,2932.1,6.3885]
[1645176244264,0.00454555,2933.3,2932.1,7.24143]
[1645176244666,0.00249083,2932.5,2932.1,7.24143]
[1645176244868,0.00249083,2932.5,2932.1,6.3885]
[1645176245608,0.00454555,2933.3,2932.1,6.3885]
[1645176245810,0.00249083,2932.4,2932.1,6.3885]
[1645176246409,0.00249083,2932.4,2932.1,2.8885]
[1645176246809,0.49,2933.1,2932.1,2.8885]
[1645176246810,0.00454555,2933.0,2932.1,2.8885]
[1645176247009,0.00249083,2932.4,2932.1,3.059]
[1645176247210,0.00249083,2932.4,2932.1,2.8885]
[1645176248011,0.00454555,2933.0,2932.1,2.8885]
[1645176248214,0.00249083,2932.4,2932.1,2.8885]
[1645176249217,0.49,2933.1,2932.2,5.0]
[1645176249465,0.00249083,2932.4,2932.2,5.0]
[1645176249665,0.00454771,2933.0,2932.3,3.5]
[1645176249864,0.30454771,2933.0,2932.3,3.5]
[1645176250266,0.85303,2932.9,2932.3,3.5]
[1645176250466,0.85303,2932.9,2932.3,5.02826131]
[1645176250467,0.00454771,2932.8,2932.3,5.02826131]
[1645176253515,0.00454771,2933.0,2932.3,5.02826131]
[1645176253718,0.01743432,2932.7,2932.3,5.02826131]
[1645176258371,3.50454771,2933.2,2932.3,5.02826131]
[1645176258574,0.49,2933.1,2932.3,5.02826131]
[1645176258771,0.00454771,2933.0,2932.3,5.02826131]
[1645176259072,0.0024846,2932.9,2932.3,5.02826131]
[1645176259871,1.15754771,2933.0,2932.3,5.02826131]
[1645176260272,0.0024846,2932.7,2932.3,5.02826131]
[1645176261312,0.30454771,2933.0,2932.3,5.02826131]
[1645176261512,0.0024846,2932.6,2932.3,5.02826131]
[1645176262515,0.0024846,2932.6,2932.4,1.45401663]
[1645176262916,0.0024846,2932.6,2932.4,2.98221869]
[1645176263117,0.0024846,2932.6,2932.5,1.45401663]
[1645176263418,0.30454771,2933.0,2932.5,2.98215944]
[1645176263616,0.30454771,2933.0,2932.9,0.92991201]
[1645176263820,0.30454771,2933.0,2932.9,2.45787709]
[1645176264868,0.30454771,2933.0,2932.9,1.52796508]
[1645176274871,0.30454771,2933.0,2932.9,1.52703413]
[1645176275471,0.00454771,2933.0,2932.9,1.52703413]
[1645176275719,0.00203395,2933.1,2932.9,1.52703413]
[1645176275720,0.00454771,2933.1,2932.9,1.52703413]
[1645176275919,0.49203395,2933.1,2932.9,1.52703413]
[1645176276724,0.79,2933.1,2932.9,1.52703413]
[1645176277225,0.79203395,2933.1,2932.9,1.52703413]
[1645176277931,0.79,2933.1,2932.9,1.52703413]
[1645176278126,0.79203597,2933.1,2932.9,1.52703413]
[1645176278525,0.30203597,2933.1,2932.9,1.52703413]
[1645176278924,0.00203597,2933.1,2932.9,1.52703413]
[1645176279124,0.3,2933.1,2932.9,1.52703413]
[1645176279371,0.00658368,2933.1,2932.9,1.52703413]
[1645176279572,0.00203597,2933.1,2932.9,1.52703413]
[1645176280375,0.00454771,2933.4,2932.9,1.52703413]
[1645176280575,0.00203597,2933.1,2932.9,1.52703413]
[1645176281577,0.00454771,2933.2,2932.9,1.52703413]
[1645176281777,0.00203565,2933.1,2932.9,1.52703413]
[1645176282679,0.00454771,2933.2,2932.9,1.52703413]
[1645176283116,0.00203565,2933.1,2932.9,1.52703413]
[1645176283921,0.00454771,2933.2,2932.9,1.52703413]
[1645176284120,0.00203565,2933.1,2932.9,1.52703413]
[1645176285121,0.00454771,2933.2,2932.9,1.52703413]
[1645176285323,0.0020357,2933.1,2932.9,1.52703413]
[1645176286321,0.00454771,2933.2,2932.9,1.52703413]
[1645176286523,0.0020357,2933.1,2932.9,1.52703413]
[1645176287566,0.00454771,2933.2,2932.9,1.52703413]
[1645176287865,0.0020357,2933.1,2932.6,0.93137108]
[1645176288070,0.0020357,2933.1,2932.7,1.45396358]
[1645176288271,0.00658341,2933.1,2932.7,1.45396358]
[1645176288471,0.0020357,2933.1,2932.7,1.45396358]
[1645176288675,0.00454771,2933.4,2932.7,1.45396358]
[1645176288870,0.49454771,2933.4,2932.7,1.45396358]
[1645176289070,0.0020353,2933.0,2932.7,1.45396358]
[1645176289870,0.49454771,2933.4,2932.7,1.45396358]
[1645176289871,0.85292,2933.3,2932.7,1.45396358]
[1645176290071,0.00454771,2933.2,2932.7,1.45396358]
[1645176290273,0.0020353,2933.0,2932.7,1.45396358]
[1645176291123,0.30454771,2933.3,2932.7,1.45396358]
[1645176291319,0.0020353,2933.0,2932.7,1.45396358]
[1645176292319,0.00454771,2933.3,2932.7,1.45396358]
[1645176292520,0.21371707,2933.5,2932.8,4.0]
[1645176292720,2.15576586,2933.6,2932.8,4.0]
[1645176292721,0.00203541,2933.0,2932.8,4.0]
[1645176293526,2.15576586,2933.6,2932.8,4.0]
[1645176293826,0.00203541,2933.0,2932.8,4.0]
[1645176294025,0.00203541,2933.0,2932.9,1.45387363]
[1645176294866,1.30294586,2933.7,2932.9,1.45387363]
[1645176295066,0.00203541,2933.1,2932.9,1.45387363]
[1645176295973,1.60294586,2933.7,2933.5,1.06917806]
[1645176296170,0.3,2933.7,2933.5,1.06917806]
[1645176296371,2.09294586,2933.8,2933.0,4.2143]
[1645176296970,2.39294586,2933.8,2933.0,4.2143]
[1645176297171,1.30294586,2933.7,2933.0,4.2143]
[1645176297371,0.00203491,2933.5,2933.0,4.2143]
[1645176298425,1.60294586,2933.6,2933.0,4.2143]
[1645176298629,0.00203491,2933.4,2933.0,4.2143]
[1645176299527,1.60294586,2933.6,2933.0,4.2143]
[1645176299727,0.00203501,2933.3,2933.0,4.2143]
[1645176300727,0.3,2933.5,2933.0,4.2143]
[1645176300926,0.00203501,2933.3,2933.0,4.2143]
[1645176301967,2.09294586,2933.8,2933.0,4.2143]
[1645176302166,0.00203501,2933.3,2933.0,4.2143]
[1645176303176,1.60294586,2933.8,2933.0,4.2143]
[1645176303373,0.00203501,2933.3,2933.0,4.2143]
[1645176304375,1.60294586,2933.8,2933.0,4.2143]
[1645176304577,0.00203501,2933.3,2933.0,1.2366]
[1645176305474,1.60294586,2933.8,2933.0,1.2366]
[1645176305924,0.00203501,2933.3,2933.0,1.5366]
[1645176306725,1.30294586,2933.7,2933.0,1.2366]
[1645176307127,0.3,2933.8,2933.0,1.2366]
[1645176307323,0.00203501,2933.3,2933.0,1.2366]
[1645176307525,0.00203501,2933.3,2933.1,1.45373682]
[1645176308025,0.00452497,2933.8,2933.0,1.2366]
[1645176308232,0.00203501,2933.3,2933.0,2.5366]
[1645176308430,0.00203501,2933.3,2933.1,4.57305217]
[1645176308632,3.501e-05,2933.3,2933.2,1.45377026]
[1645176309029,3.3283,2934.4,2933.2,1.45377026]
[1645176309030,0.00452497,2934.2,2934.1,1.11923834]
[1645176309231,0.00452497,2934.3,2934.1,1.11923834]
[1645176309869,0.04204,2934.5,2934.1,1.11923834]
[1645176311175,0.04204,2934.5,2934.1,1.97153834]
[1645176311968,0.04204,2934.5,2934.1,1.11923834]
[1645176312772,0.04204,2934.5,2934.1,1.41923834]
[1645176312973,0.04204,2934.5,2934.1,2.43073834]
[1645176312974,0.002035,2934.4,2934.1,2.43073834]
[1645176313840,0.002035,2934.4,2934.1,3.28301834]
[1645176314043,0.00452497,2935.1,2935.0,0.96363015]
[1645176314242,1.30747083,2935.2,2934.3,1.1346]
[1645176314442,0.00452497,2935.2,2934.3,1.1346]
[1645176314640,1.30294586,2935.2,2934.3,1.1346]
[1645176314840,1.30747083,2935.2,2934.3,1.1346]
[1645176315042,1.30294586,2935.0,2934.3,1.1346]
[1645176315244,0.00452497,2934.9,2934.4,1.11195234]
[1645176315443,0.00219055,2934.9,2934.4,1.11195234]
[1645176315842,0.00219055,2934.9,2934.4,1.41195234]
[1645176316546,0.00219055,2934.8,2934.4,1.41195234]
[1645176316747,0.00219055,2934.8,2934.4,1.11195234]
[1645176317568,0.00452497,2935.0,2934.4,1.11195234]
[1645176317772,0.00199869,2934.7,2934.4,1.11195234]
[1645176318173,0.00199869,2934.7,2934.4,0.87792019]
[1645176318672,1.30294586,2935.2,2934.4,0.87792019]
[1645176318673,0.85241,2934.9,2934.4,0.87792019]
[1645176318874,0.00452497,2934.8,2934.3,1.1346]
[1645176319076,0.00199869,2934.7,2934.3,1.1346]
[1645176320074,0.00452497,2934.8,2934.3,1.1346]
[1645176320276,0.00199869,2934.6,2934.3,1.1346]
[1645176320920,0.00199869,2934.6,2934.4,0.3]
[1645176321119,0.04204,2935.2,2934.4,0.3]
[1645176321120,0.00452497,2935.2,2934.4,0.3]
[1645176321323,0.85683497,2935.2,2934.4,0.3]
[1645176321520,0.00203665,2934.6,2934.4,0.3]
[1645176322321,0.85683497,2935.2,2934.4,0.3]
[1645176322522,0.85683497,2935.2,2934.4,3.8]
[1645176322722,0.00203665,2934.6,2934.4,3.8]
[1645176322923,0.00203665,2934.6,2934.4,0.3]
[1645176323330,0.00203665,2934.6,2934.3,1.1346]
[1645176323529,0.85683497,2935.2,2934.3,1.1346]
[1645176323730,0.85683497,2935.2,2934.4,0.3]
[1645176323928,0.00203665,2934.6,2934.4,0.3]
[1645176324774,0.85683497,2935.2,2934.4,0.3]
[1645176324977,0.00203024,2934.6,2934.4,0.3]
[1645176325978,0.85683497,2935.2,2934.4,0.3]
[1645176326180,0.85683497,2935.2,2934.4,22.2071]
[1645176326181,0.00203024,2934.6,2934.4,22.2071]
[1645176326480,0.00203024,2934.6,2934.5,3.5]
[1645176326680,0.00203024,2934.6,2934.5,6.5269]
[1645176326883,0.00203024,2934.6,2934.5,7.5269]
[1645176327079,0.00452497,2935.6,2934.5,7.5269]
[1645176327280,0.00452497,2935.6,2934.8,0.85206]
[1645176327480,1.30294586,2935.9,2935.0,1.00066152]
[1645176327481,0.00452497,2935.9,2935.0,1.00066152]
[1645176327682,1.60747083,2935.9,2935.1,3.5]
[1645176327879,1.30747083,2935.9,2935.0,1.30066152]
[1645176328527,0.00452497,2935.9,2935.1,3.5]
[1645176328725,0.00203061,2935.6,2935.1,3.5]
[1645176329528,0.00203061,2935.6,2935.0,2.15263512]
[1645176329726,0.30812122,2936.0,2935.1,3.5]
[1645176329727,0.00203061,2935.5,2935.1,3.5]
[1645176330831,0.00452497,2935.9,2935.3,0.85193]
[1645176331029,0.00452497,2935.9,2935.4,3.5]
[1645176331231,0.00452497,2935.9,2935.4,3.8]
[1645176331629,0.00452497,2935.9,2935.8,0.84162853]
[1645176337116,0.00452497,2935.9,2935.8,4.34162853]
[1645176337519,0.00452497,2935.9,2935.8,0.84162853]
[1645176337918,0.25655534,2936.1,2935.8,0.84162853]
[1645176338123,1.0,2936.6,2935.8,0.84162853]
[1645176338323,0.00203037,2936.0,2935.8,0.84162853]
[1645176338723,0.00203037,2936.0,2935.7,1.1619]
[1645176338923,0.00203037,2936.0,2935.5,3.1162]
[1645176339370,1.30294586,2936.4,2935.5,3.1162]
[1645176339572,0.85197,2936.3,2935.5,3.1162]
[1645176339772,1.16245948,2936.2,2935.5,3.1162]
[1645176341171,0.85207,2936.0,2935.5,3.1162]
[1645176341372,1.15207,2936.0,2935.5,3.1162]
[1645176341773,1.15207,2936.0,2935.2,1.1988]
[1645176341974,0.49,2935.9,2935.2,1.1988]
[1645176342175,1.80790797,2935.7,2935.2,1.1988]
[1645176342480,2.10790797,2935.7,2935.2,1.1988]
[1645176343522,2.10790797,2935.7,2934.8,3.2234]
[1645176343724,2.10790797,2935.7,2934.3,3.168]
[1645176343725,0.8523,2935.4,2934.3,3.168]
[1645176343920,1.1523,2935.4,2934.4,3.2683]
[1645176344520,1.1523,2935.4,2934.7,0.98417255]
[1645176344725,1.1523,2935.4,2934.7,1.28417255]
[1645176345025,0.3,2935.4,2934.8,0.1703]
[1645176345223,1.79,2935.6,2934.7,1.28417255]
[1645176346122,0.85225,2935.4,2934.7,0.3]
[1645176346324,1.15225,2935.4,2934.5,1.4403]
[1645176347267,1.15225,2935.4,2934.6,3.5]
[1645176347470,1.15225,2935.4,2934.5,2.29253]
[1645176347670,1.15225,2935.4,2934.6,4.43761082]
[1645176347870,0.3,2935.4,2934.6,4.43761082]
[1645176348072,0.79,2935.6,2934.7,1.0]
[1645176348272,0.79,2935.6,2934.8,0.1703]
[1645176348474,0.79,2935.6,2934.6,4.43761082]
[1645176348773,0.79,2935.6,2934.6,1.78982082]
[1645176348973,0.79,2935.6,2934.6,5.28982082]
[1645176348974,1.64219,2935.6,2934.6,5.28982082]
[1645176349572,2.94513586,2935.6,2934.6,5.28982082]
[1645176349872,2.09294586,2935.6,2934.6,5.28982082]
[1645176350927,0.49,2935.6,2934.6,5.28974372]
[1645176351120,0.49,2935.6,2934.7,0.85208]
[1645176351322,0.79,2935.6,2934.8,3.5]
[1645176352027,0.49,2935.6,2935.1,1.0373861]
[1645176352226,1.30294586,2935.8,2935.1,1.3373861]
[1645176352625,0.85215,2935.7,2935.1,1.3373861]
[1645176352830,2.15509586,2935.7,2935.1,1.3373861]
[1645176353026,0.00450235,2935.6,2935.1,1.3373861]
[1645176354031,0.00450235,2935.6,2935.1,0.3]
[1645176354232,0.00450235,2935.6,2934.9,1.5052]
[1645176354872,0.00450235,2935.6,2935.0,3.5]
[1645176355271,0.00450235,2935.6,2935.1,0.85205]
[1645176355476,1.30294586,2935.9,2935.2,3.5]
[1645176355477,0.00450235,2935.8,2935.2,3.5]
[1645176355673,0.00450235,2935.8,2935.2,0.3]
[1645176355674,1.30744821,2935.8,2935.2,0.3]
[1645176355975,1.30744821,2935.8,2935.1,0.85205]
[1645176355976,1.60744821,2935.8,2935.1,1.15205]
[1645176356176,1.60744821,2935.8,2935.2,1.14329419]
[1645176356975,0.85214,2935.7,2935.2,1.14329419]
[1645176357174,0.00450235,2935.6,2935.2,1.14329419]
[1645176357774,1.73600637,2936.0,2935.2,1.14329419]
[1645176357775,0.00450235,2935.7,2935.2,1.14329419]
[1645176357978,0.00450235,2935.9,2935.2,4.64329419]
[1645176358727,0.00450235,2935.9,2935.2,5.49525599]
[1645176359125,0.00450235,2935.9,2935.3,0.3]
[1645176359527,1.30744821,2935.9,2935.3,1.15197]
[1645176359727,1.30294586,2936.0,2935.3,2.30807]
[1645176359926,0.85204,2936.1,2935.3,2.30807]
[1645176359927,0.00450235,2935.8,2935.3,2.30807]
[1645176360128,1.30294586,2935.9,2935.3,2.30681032]
[1645176360326,0.00450235,2935.8,2935.3,2.30681032]
[1645176361327,0.00450235,2935.8,2935.3,5.80681032]
[1645176361527,0.00450235,2935.8,2935.3,2.30681032]
[1645176363778,0.00450235,2935.8,2935.3,5.80681032]
[1645176363977,0.00450235,2935.8,2935.3,2.30681032]
[1645176364779,1.30744821,2935.8,2935.3,2.30681032]
[1645176364980,1.30294586,2935.8,2935.3,2.30681032]
[1645176365179,0.00450235,2935.7,2935.3,2.30681032]
[1645176367023,0.00450235,2935.8,2935.3,2.30681032]
[1645176367224,0.00450235,2935.8,2935.3,1.45484032]
[1645176367428,1.30744821,2935.8,2935.3,1.45484032]
[1645176367825,1.30294586,2935.6,2935.3,1.45484032]
[1645176368027,0.00450235,2935.5,2935.3,1.45484032]
[1645176368227,1.30294586,2935.6,2935.1,1.1522]
[1645176368431,0.85225,2935.5,2935.1,0.8522]
[1645176368630,2.15519586,2935.5,2935.1,0.8522]
[1645176368828,0.00450235,2935.4,2935.1,0.8522]
[1645176369028,1.30744821,2935.4,2935.1,0.8522]
[1645176369671,1.30744821,2935.4,2935.1,1.1522]
[1645176370677,0.00450235,2935.4,2935.1,1.1522]
[1645176370875,0.00450235,2935.4,2935.1,0.3]
[1645176371079,0.00450235,2935.4,2935.1,1.15221]
[1645176372576,0.00450235,2935.6,2935.2,1.16057109]
[1645176372776,0.00450235,2935.6,2935.2,4.66057109]
[1645176372977,0.00450235,2935.6,2935.2,7.14345109]
[1645176373239,0.00450235,2935.6,2935.3,3.8]
[1645176373535,1.35332173,2936.0,2935.3,5.4110905]
[1645176373536,0.00450235,2935.9,2935.3,5.4110905]
[1645176373736,0.00989587,2936.0,2935.3,6.5595905]
[1645176373935,0.00450235,2936.2,2935.4,1.1703]
[1645176374135,1.30294586,2936.4,2935.4,1.1703]
[1645176374136,1.30294586,2936.4,2936.0,0.96962078]
[1645176374335,3.50450235,2936.5,2936.0,2.12145078]
[1645176374336,0.00297979,2936.2,2936.0,2.12145078]
[1645176374836,0.00297979,2936.2,2936.0,1.15183]
[1645176375037,0.00297979,2936.2,2936.0,0.3]
[1645176375237,1.30744821,2936.3,2935.9,2.00365]
[1645176376239,1.30744821,2936.3,2936.0,1.12089165]
[1645176377280,0.00450235,2936.3,2936.0,1.12089165]
[1645176377480,1.30294586,2936.4,2936.0,1.12089165]
[1645176377680,0.00450235,2936.3,2936.0,1.12089165]
[1645176377880,0.00681415,2936.3,2936.0,1.12089165]
[1645176378480,1.30976001,2936.3,2936.0,1.12089165]
[1645176378680,0.00681415,2936.3,2936.0,1.12089165]
[1645176378884,0.00450235,2936.3,2936.0,1.12089165]
[1645176379081,0.00681415,2936.3,2936.0,1.12089165]
[1645176379381,1.30976001,2936.3,2936.0,1.12089165]
[1645176379980,1.30744821,2936.3,2936.0,1.12089165]
[1645176380182,1.30976001,2936.3,2936.0,23.46]
[1645176380384,0.00681415,2936.3,2936.0,3.5]
[1645176380621,0.00681415,2936.3,2935.9,2.00365]
[1645176380622,0.0023118,2936.3,2935.9,2.00365]
[1645176380822,0.0023118,2936.3,2936.0,3.0961]
[1645176381230,1.30744821,2936.8,2936.2,1.07788643]
[1645176381435,1.30744821,2936.8,2936.2,2.78121643]
[1645176381436,0.00450235,2936.6,2936.2,2.78121643]
[1645176381630,0.00450235,2936.7,2936.2,2.78121643]
[1645176381834,0.00450235,2936.7,2936.3,0.3]
[1645176382030,1.30294586,2936.9,2936.3,0.3]
[1645176382234,0.00450235,2936.8,2936.3,0.3]
[1645176383434,0.00450235,2936.8,2936.1,3.15048]
[1645176383834,0.00450235,2936.8,2936.1,6.65048]
[1645176384137,0.00450235,2936.8,2936.1,6.50048]
[1645176384372,0.00450235,2936.8,2936.1,3.00048]
[1645176384974,0.00450235,2936.8,2936.1,4.08206084]
[1645176384975,0.84965237,2936.8,2936.1,4.08206084]
[1645176385179,0.00244628,2936.6,2936.1,4.08206084]
[1645176385977,0.00450235,2936.8,2936.1,4.08206084]
[1645176386179,0.00244628,2936.5,2936.1,4.08206084]
[1645176387179,0.00450235,2936.8,2936.1,4.08206084]
[1645176387579,0.00244628,2936.4,2936.1,3.00048]
[1645176388532,0.00450235,2936.8,2936.1,3.00048]
[1645176388729,0.00244628,2936.4,2936.1,3.00048]
[1645176389731,0.00450235,2936.8,2936.1,3.00048]
[1645176389930,0.00244628,2936.4,2936.1,3.00048]
[1645176390931,0.01428598,2936.8,2936.1,3.00048]
[1645176390932,0.00450235,2936.8,2936.1,3.00048]
[1645176391129,0.00244628,2936.4,2936.1,3.00048]
[1645176392174,0.00450235,2937.0,2936.1,3.00048]
[1645176392374,0.00244628,2936.4,2936.1,3.00048]
[1645176393180,0.00450235,2936.8,2936.1,3.00048]
[1645176393582,0.00244628,2936.4,2936.1,3.00048]
[1645176394081,0.00244628,2936.4,2936.1,0.3]
[1645176394282,0.00244628,2936.4,2935.9,0.3]
[1645176394485,0.49450235,2936.5,2935.9,0.3]
[1645176394682,0.49450235,2936.5,2935.8,1.1734]
[1645176394883,1.70412,2936.3,2935.8,1.1734]
[1645176395084,0.00450235,2936.2,2935.8,1.1734]
[1645176395283,0.00450235,2936.2,2935.6,0.1701]
[1645176395730,0.30450235,2936.2,2935.6,0.1701]
[1645176395931,0.00694854,2936.1,2935.6,0.1701]
[1645176396134,0.30244619,2936.1,2935.6,0.1701]
[1645176396334,0.00450235,2936.0,2935.6,0.1701]
[1645176399238,0.30450235,2936.0,2935.6,0.1701]
[1645176399479,0.3,2936.0,2935.6,0.1701]
[1645176399679,0.00450235,2935.9,2935.6,0.1701]
[1645176399876,0.30450235,2935.9,2935.6,0.1701]
[1645176400076,0.3,2935.9,2935.6,0.1701]
[1645176400279,0.00450235,2935.9,2935.6,0.1701]
[1645176400480,0.00450235,2936.3,2935.6,1.02211]
[1645176400679,0.00450235,2936.0,2935.6,1.02211]
[1645176400878,0.49694842,2936.1,2935.6,1.02211]
[1645176401780,0.49694842,2936.1,2935.7,0.3]
[1645176401781,0.49450235,2936.1,2935.7,0.3]
[1645176401981,0.4969485,2936.1,2935.7,0.3]
[1645176402982,0.49450235,2936.1,2935.7,0.3]
[1645176403232,0.49694854,2936.1,2935.7,0.3]
[1645176403635,0.00694854,2936.1,2935.7,0.3]
[1645176403835,0.00244619,2936.1,2935.7,0.3]
[1645176404035,0.00450235,2936.3,2935.7,0.3]
[1645176404435,0.00244619,2936.1,2935.7,0.3]
[1645176405434,0.00450235,2936.3,2935.7,0.3]
[1645176405634,0.00244619,2936.1,2935.7,0.3]
[1645176406239,0.85449619,2936.1,2935.7,0.3]
[1645176406438,0.00450235,2936.0,2935.7,0.3]
[1645176406640,0.00450235,2936.0,2935.5,3.18994]
[1645176406880,0.00119528,2935.7,2935.5,3.18994]
[1645176407490,0.00119528,2935.7,2935.5,0.3]
[1645176407686,0.00119528,2935.7,2935.0,4.4905]
[1645176407890,0.00119528,2935.7,2935.1,0.3]
[1645176408688,0.00119528,2935.7,2935.3,1.17972389]
[1645176408888,0.00119528,2935.7,2935.3,1.47972389]
[1645176410090,0.00119528,2935.7,2935.3,1.17972389]
[1645176411534,0.00119528,2935.7,2935.3,1.47972389]
[1645176411733,0.00119528,2935.7,2935.3,1.47838782]
[1645176414240,0.00119528,2935.7,2935.3,3.18233782]
[1645176417283,0.00119528,2935.7,2935.3,4.03428082]
[1645176418839,0.00119528,2935.7,2935.3,8.35133782]
[1645176419840,0.00119528,2935.7,2935.3,3.18233782]
[1645176424685,0.00119528,2935.7,2935.3,6.68233782]
[1645176426625,0.00119528,2935.7,2935.3,3.18233782]
[1645176427029,0.00119528,2935.7,2935.3,6.68233782]
[1645176428631,0.00119528,2935.7,2935.3,7.53427122]
[1645176428834,0.00119528,2935.7,2935.4,2.62271503]
[1645176429035,0.00119528,2935.7,2935.5,6.08161503]
[1645176429236,0.00119528,2935.7,2935.6,5.12271503]
[1645176429477,0.00119528,2935.7,2935.6,3.6703]
[1645176429677,0.00119528,2935.7,2935.6,5.12269968]
[1645176430078,0.00119528,2935.7,2935.6,5.12267357]
[1645176430279,0.00119528,2935.7,2935.6,1.62267357]
[1645176431577,0.00119528,2935.7,2935.6,0.1703]
[1645176431978,0.00119528,2935.7,2935.5,3.9845514]
[1645176432781,0.00119528,2935.7,2935.6,1.4524114]
[1645176433338,0.00119528,2935.7,2935.5,3.9845514]
[1645176433540,0.00119528,2935.7,2935.6,1.45240967]
[1645176434139,0.00119528,2935.7,2935.5,3.9845514]
[1645176434538,0.00119528,2935.7,2935.5,3.6845514]
[1645176434740,5.65e-06,2935.7,2935.5,3.6845514]
[1645176435141,0.00244598,2936.1,2935.8,0.97234889]
[1645176435340,0.85196,2936.4,2935.9,0.85189]
[1645176435541,0.85196,2936.4,2935.8,1.82423339]
[1645176435542,0.00244594,2936.1,2935.7,0.00079435]
[1645176436440,0.53650235,2936.3,2935.7,0.00079435]
[1645176436639,0.85208,2936.1,2935.7,0.00079435]
[1645176436878,0.85452619,2936.1,2935.7,0.00079435]
[1645176437476,0.00244619,2936.1,2935.7,0.00079435]
[1645176437675,0.49450235,2936.3,2935.7,0.00079435]
[1645176437876,0.00244619,2936.1,2935.7,0.30079435]
[1645176438281,0.00244619,2936.1,2935.7,0.00079435]
[1645176438883,0.178291,2936.2,2935.7,0.00079435]
[1645176439083,0.49450235,2936.3,2935.9,1.13389394]
[1645176439283,0.00244619,2936.1,2935.9,1.13389394]
[1645176439681,0.85451619,2936.1,2935.9,1.13389394]
[1645176440084,0.85207,2936.1,2935.9,1.13389394]
[1645176440383,0.85451628,2936.1,2935.9,1.13389394]
[1645176440832,0.00244628,2936.1,2935.9,1.13389394]
[1645176441434,0.00450235,2936.3,2935.9,1.13389394]
[1645176441635,0.00244628,2936.1,2935.9,1.13389394]
[1645176442534,0.00450235,2936.3,2935.9,1.13389394]
[1645176442734,0.00244628,2936.1,2935.9,1.13389394]
[1645176443739,0.00450235,2936.3,2935.9,1.13389394]
[1645176443938,0.00244628,2936.1,2935.9,1.13389394]
[1645176444139,0.85449628,2936.1,2935.9,1.13389394]
[1645176444983,0.85205,2936.1,2935.9,1.13389394]
[1645176445183,0.85449628,2936.1,2935.9,1.13389394]
[1645176445382,0.85449628,2936.1,2935.7,0.3]
[1645176446185,0.85205,2936.1,2935.7,0.3]
[1645176446383,0.85205,2936.1,2935.7,1.2949803]
[1645176446384,0.85449619,2936.1,2935.7,1.2949803]
[1645176447390,0.85205,2936.1,2935.7,1.2949803]
[1645176447590,0.85449619,2936.1,2935.7,1.2949803]
[1645176448536,0.85205,2936.1,2935.7,1.2949803]
[1645176448743,0.85449619,2936.1,2935.7,1.2949803]
[1645176449140,0.85449619,2936.1,2935.8,3.5]